lending/lending_fUSD_20251124
["ID","MTS","AMOUNT","RATE_DAILY","PERIOD"]
[394839514,1764004335419,-525.11,0.00040547,8]
[394839515,1764004335429,-1003.05,0.00040547,8]
[394839516,1764004335438,-589.19,0.00040547,8]
[394839517,1764004335447,-1145.57,0.00040547,8]
[394839518,1764004335458,-793.5,0.00040547,8]
[394839519,1764004335467,-7870.47,0.00040547,8]
[394839520,1764004335476,-500.0,0.00040547,8]
[394839521,1764004335485,-573.44,0.00040547,8]
[394839522,1764004335494,-4868.19,0.00040547,2]
[394839523,1764004335503,-777.06,0.00040547,8]
[394839524,1764004335513,-500.0,0.00040547,2]
[394839525,1764004335522,-500.0,0.00040547,8]
[394839526,1764004335531,-511.5,0.00040547,8]
[394839527,1764004335544,-500.0,0.00040547,8]
[394839528,1764004335554,-671.7,0.00040547,8]
[394839529,1764004335563,-502.35,0.00040547,8]
[394839530,1764004335573,-427.28391476,0.00040658,120]
[394839531,1764004335584,-750.0,0.00040681,20]
[394839532,1764004335593,-622.50981224,0.000408,30]
[394839533,1764004335603,-505.89,0.00040821,8]
[394839534,1764004335613,-572.85,0.00040821,8]
[394839535,1764004335624,-276.64289027,0.00040821,8]
[394839536,1764004335633,-562.21,0.00040821,8]
[394839537,1764004335643,-425.66993394,0.00040821,8]
[394839538,1764004335653,-577.78310636,0.00040821,8]
[394839539,1764004335663,-651.15,0.00040821,8]
[394839540,1764004335672,-576.19,0.00040821,8]
[394839541,1764004335681,-394.68884342,0.00040821,8]
[394839542,1764004335691,-500.0,0.00040821,8]
[394839543,1764004335701,-515.9,0.00040821,8]
[394839544,1764004335712,-500.0,0.00040821,8]
[394839545,1764004335722,-572.26,0.00040821,8]
[394839546,1764004335731,-356.77155035,0.00040821,8]
[394839547,1764004335741,-508.1,0.00040821,8]
[394839548,1764004335750,-613.89,0.00040821,8]
[394839549,1764004335761,-611.3,0.00040821,8]
[394839550,1764004335771,-745.01,0.00040821,8]
[394839551,1764004335781,-500.0,0.00040821,8]
[394839552,1764004335793,-332.2964831,0.00040821,8]
[394839553,1764004335803,-500.0,0.00040821,8]
[394839554,1764004335814,-854.99,0.00040821,8]
[394839555,1764004335823,-532.39,0.00040821,8]
[394839556,1764004335832,-548.21,0.00040821,8]
[394839557,1764004335841,-1041.72,0.00040821,8]
[394839558,1764004335850,-1368.18,0.00040821,8]
[394839559,1764004335860,-1000.0,0.00040821,30]
[394839560,1764004335869,-500.0,0.00040821,8]
[394839561,1764004335878,-500.0,0.00040821,8]
[394839562,1764004335887,-780.9,0.00040821,8]
[394839563,1764004335897,-58883.02,0.00040821,5]
[394839564,1764004335906,-2084.41,0.00040821,8]
[394839565,1764004335915,-1628.09,0.00040821,8]
[394839566,1764004335925,-5963.43,0.00040821,8]
[394839567,1764004335935,-1883.34,0.00040821,8]
[394839568,1764004335944,-690.57,0.00040821,8]
[394839569,1764004335955,-2060.11,0.00040821,8]
[394839570,1764004335964,-4395.08,0.00040821,8]
[394839571,1764004335974,-525.11,0.00040821,8]
[394839572,1764004335983,-1003.05,0.00040821,8]
[394839573,1764004335992,-589.19,0.00040821,8]
[394839574,1764004336002,-1145.57,0.00040821,8]
[394839575,1764004336011,-793.5,0.00040821,8]
[394839576,1764004336021,-7870.47,0.00040821,8]
[394839577,1764004336030,-500.0,0.00040821,8]
[394839578,1764004336039,-573.44,0.00040821,8]
[394839579,1764004336049,-4868.19,0.00040821,2]
[394839580,1764004336058,-777.06,0.00040821,8]
[394839581,1764004336068,-500.0,0.00040821,2]
[394839582,1764004336077,-588.402265,0.00040821,8]
[394839583,1764004336087,-511.5,0.00040821,8]
[394839584,1764004336096,-500.0,0.00040821,8]
[394839585,1764004336106,-671.7,0.00040821,8]
[394839586,1764004336115,-502.35,0.00040821,8]
[394839587,1764004336124,-150.0,0.00040928,120]
[394839588,1764004336134,-1200.0,0.00040959,2]
[394839589,1764004336144,-1200.0,0.00040959,2]
[394839590,1764004336154,-1200.0,0.00040959,2]
[394839591,1764004336163,-800.0,0.00040959,2]
[394839592,1764004336172,-1200.0,0.00040959,2]
[394839593,1764004336181,-1200.0,0.00040959,2]
[394839594,1764004336191,-1200.0,0.00040959,2]
[394839595,1764004336200,-1200.0,0.00040959,2]
[394839596,1764004336209,-700.0,0.00040959,2]
[394839597,1764004336218,-1200.0,0.00040959,2]
[394839598,1764004336227,-1000.0,0.00040959,2]
[394839599,1764004336236,-150.0,0.00040992,120]
[394839600,1764004336245,-162.92887356,0.00040997,30]
[394839601,1764004336255,-257.91778498,0.00040998,30]
[394839602,1764004336265,-50000.0,0.00041,41]
[394839603,1764004336274,-24124.31180554,0.00041,2]
[394839604,1764004336286,-9784407.57503464,0.00041,2]
[394839605,1764004336297,-3461.47,0.00041,14]
[394839606,1764004336308,-649.55472156,0.00041,2]
[394839607,1764004336319,-1000.64978974,0.00041,120]
[394839608,1764004336328,-1350.0,0.00041,120]
[394839609,1764004336338,-153.52,0.00041,30]
[394839610,1764004336348,-1010.3864859,0.00041,14]
[394839611,1764004336357,-1000.0,0.00041,120]
[394839612,1764004336367,-1250.0,0.00041,30]
[394839613,1764004336377,-416004.23718674,0.00041,2]
[394839614,1764004336387,-14367.03577699,0.00041,60]
[394839615,1764004336396,-162.0,0.00041,90]
[394839616,1764004336406,-160.00874855,0.00041068,22]
[394839617,1764004336416,-750.0,0.00041092,20]
[394839618,1764004336426,-505.89,0.00041095,8]
[394839619,1764004336435,-572.85,0.00041095,8]
[394839620,1764004336445,-562.21,0.00041095,8]
[394839621,1764004336456,-651.15,0.00041095,8]
[394839622,1764004336465,-576.19,0.00041095,8]
[394839623,1764004336475,-355.13342089,0.00041095,8]
[394839624,1764004336485,-515.9,0.00041095,8]
[394839625,1764004336495,-500.0,0.00041095,8]
[394839626,1764004336505,-572.26,0.00041095,8]
[394839627,1764004336514,-508.1,0.00041095,8]
[394839628,1764004336523,-613.89,0.00041095,8]
[394839629,1764004336533,-611.3,0.00041095,8]
[394839630,1764004336546,-745.01,0.00041095,8]
[394839631,1764004336556,-500.0,0.00041095,8]
[394839632,1764004336565,-495.11302832,0.00041095,8]
[394839633,1764004336574,-854.99,0.00041095,8]
[394839634,1764004336585,-532.39,0.00041095,8]
[394839635,1764004336594,-548.21,0.00041095,8]
[394839636,1764004336603,-1041.72,0.00041095,8]
[394839637,1764004336614,-1368.18,0.00041095,8]
[394839638,1764004336623,-357.55053209,0.00041095,30]
[394839639,1764004336632,-500.0,0.00041095,8]
[394839640,1764004336641,-210.2,0.00041095,8]
[394839641,1764004336650,-780.9,0.00041095,8]
[394839642,1764004336660,-58883.02,0.00041095,5]
[394839643,1764004336669,-2084.41,0.00041095,8]
[394839644,1764004336678,-1628.09,0.00041095,8]
[394839645,1764004336687,-5963.43,0.00041095,8]
[394839646,1764004336697,-1883.34,0.00041095,8]
[394839647,1764004336708,-690.57,0.00041095,8]
[394839648,1764004336717,-2060.11,0.00041095,8]
[394839649,1764004336727,-4395.08,0.00041095,8]
[394839650,1764004336736,-525.11,0.00041095,8]
[394839651,1764004336745,-1003.05,0.00041095,8]
[394839652,1764004336755,-589.19,0.00041095,8]
[394839653,1764004336764,-1145.57,0.00041095,8]
[394839654,1764004336774,-793.5,0.00041095,8]
[394839655,1764004336783,-7870.47,0.00041095,8]
[394839656,1764004336792,-500.0,0.00041095,8]
[394839657,1764004336801,-573.44,0.00041095,8]
[394839658,1764004336812,-4868.19,0.00041095,2]
[394839659,1764004336821,-777.06,0.00041095,8]
[394839660,1764004336831,-500.0,0.00041095,2]
[394839661,1764004336840,-511.5,0.00041095,8]
[394839662,1764004336849,-500.0,0.00041095,8]
[394839663,1764004336859,-671.7,0.00041095,8]
[394839664,1764004336868,-502.35,0.00041095,8]
[394839665,1764004336877,-999.0,0.00041095,120]
[394839666,1764004336887,-158.96,0.00041096,2]
[394839667,1764004336896,-163.73089587,0.00041096,10]
[394839668,1764004336905,-1000.0,0.00041096,2]
[394839669,1764004336916,-760.0,0.00041096,120]
[394839670,1764004336924,-1200.0,0.000411,2]
[394839671,1764004336933,-537.0,0.000411,2]
[394839672,1764004336943,-248.71531821,0.0004115,30]
[394839673,1764004336954,-211.53687072,0.00041186,13]
[394839674,1764004336963,-500.0,0.000412,30]
[394839675,1764004336972,-500.0,0.000412,30]
[394839676,1764004336981,-500.0,0.000412,30]
[394839677,1764004336991,-1000.0,0.00041233,2]
[394839678,1764004337001,-760.0,0.00041233,120]
[394839679,1764004337010,-156.21065256,0.0004132,2]
[394839680,1764004337019,-552.13401393,0.0004133,120]
[394839681,1764004337028,-300.242311,0.00041353,105]
[394839682,1764004337038,-505.89,0.00041369,8]
[394839683,1764004337047,-572.85,0.00041369,8]
[394839684,1764004337056,-562.21,0.00041369,8]
[394839685,1764004337066,-651.15,0.00041369,8]
[394839686,1764004337075,-576.19,0.00041369,8]
[394839687,1764004337084,-515.9,0.00041369,8]
[394839688,1764004337093,-500.0,0.00041369,8]
[394839689,1764004337102,-572.26,0.00041369,8]
[394839690,1764004337111,-508.1,0.00041369,8]
[394839691,1764004337274,-613.89,0.00041369,8]
[394839692,1764004337310,-611.3,0.00041369,8]
[394839693,1764004337320,-745.01,0.00041369,8]
[394839694,1764004337330,-500.0,0.00041369,8]
[394839695,1764004337339,-854.99,0.00041369,8]
[394839696,1764004337349,-532.39,0.00041369,8]
[394839697,1764004337358,-548.21,0.00041369,8]
[394839698,1764004337367,-1041.72,0.00041369,8]
[394839699,1764004337377,-1368.18,0.00041369,8]
[394839700,1764004337387,-500.0,0.00041369,8]
[394839701,1764004337396,-780.9,0.00041369,8]
[394839702,1764004337406,-58883.02,0.00041369,5]
[394839703,1764004337415,-2084.41,0.00041369,8]
[394839704,1764004337425,-1628.09,0.00041369,8]
[394839705,1764004337435,-5963.43,0.00041369,8]
[394839706,1764004337447,-1883.34,0.00041369,8]
[394839707,1764004337456,-690.57,0.00041369,8]
[394839708,1764004337469,-2060.11,0.00041369,8]
[394839709,1764004337479,-4395.08,0.00041369,8]
[394839710,1764004337489,-525.11,0.00041369,8]
[394839711,1764004337499,-1003.05,0.00041369,8]
[394839712,1764004337511,-589.19,0.00041369,8]
[394839713,1764004337520,-1145.57,0.00041369,8]
[394839714,1764004337529,-793.5,0.00041369,8]
[394839715,1764004337542,-7870.47,0.00041369,8]
[394839716,1764004337551,-500.0,0.00041369,8]
[394839717,1764004337561,-573.44,0.00041369,8]
[394839718,1764004337570,-4868.19,0.00041369,2]
[394839719,1764004337580,-777.06,0.00041369,8]
[394839720,1764004337590,-500.0,0.00041369,2]
[394839721,1764004337599,-511.5,0.00041369,8]
[394839722,1764004337609,-500.0,0.00041369,8]
[394839723,1764004337620,-671.7,0.00041369,8]
[394839724,1764004337630,-502.35,0.00041369,8]
[394839725,1764004337639,-1000.0,0.0004137,2]
[394839726,1764004337649,-760.0,0.0004137,120]
[394839727,1764004337658,-1482.86906448,0.00041397,120]
[394839728,1764004337667,-150.0,0.00041413,120]
[394839729,1764004337677,-500.0,0.00041474,30]
[394839730,1764004337687,-500.0,0.00041474,30]
[394839731,1764004337697,-750.0,0.00041503,20]
[394839732,1764004337707,-1000.0,0.00041507,2]
[394839733,1764004337717,-760.0,0.00041507,120]
[394839734,1764004337726,-505.89,0.00041643,8]
[394839735,1764004337736,-572.85,0.00041643,8]
[394839736,1764004337746,-562.21,0.00041643,8]
[394839737,1764004337762,-651.15,0.00041643,8]
[394839738,1764004337772,-576.19,0.00041643,8]
[394839739,1764004337781,-515.9,0.00041643,8]
[394839740,1764004337791,-500.0,0.00041643,8]
[394839741,1764004337801,-572.26,0.00041643,8]
[394839742,1764004337811,-508.1,0.00041643,8]
[394839743,1764004337820,-613.89,0.00041643,8]
[394839744,1764004337830,-611.3,0.00041643,8]
[394839745,1764004337840,-745.01,0.00041643,8]
[394839746,1764004337849,-566.66444125,0.00041643,8]
[394839747,1764004337859,-854.99,0.00041643,8]
[394839748,1764004337872,-532.39,0.00041643,8]
[394839749,1764004337882,-548.21,0.00041643,8]
[394839750,1764004337891,-1041.72,0.00041643,8]
[394839751,1764004337901,-1368.18,0.00041643,8]
[394839752,1764004337911,-265.41044621,0.00041643,8]
[394839753,1764004337920,-780.9,0.00041643,8]
[394839754,1764004337930,-58883.02,0.00041643,5]
[394839755,1764004337940,-2084.41,0.00041643,8]
[394839756,1764004337950,-1628.09,0.00041643,8]
[394839757,1764004337959,-5963.43,0.00041643,8]
[394839758,1764004337968,-1883.34,0.00041643,8]
[394839759,1764004337977,-690.57,0.00041643,8]
[394839760,1764004337987,-2060.11,0.00041643,8]
[394839761,1764004337996,-4395.08,0.00041643,8]
[394839762,1764004338006,-525.11,0.00041643,8]
[394839763,1764004338015,-1003.05,0.00041643,8]
[394839764,1764004338024,-589.19,0.00041643,8]
[394839765,1764004338034,-1145.57,0.00041643,8]
[394839766,1764004338044,-793.5,0.00041643,8]
[394839767,1764004338054,-7870.47,0.00041643,8]
[394839768,1764004338063,-500.0,0.00041643,8]
[394839769,1764004338073,-573.44,0.00041643,8]
[394839770,1764004338082,-4868.19,0.00041643,2]
[394839771,1764004338093,-777.06,0.00041643,8]
[394839772,1764004338103,-448.61151921,0.00041643,2]
[394839773,1764004338112,-511.5,0.00041643,8]
[394839774,1764004338122,-500.0,0.00041643,8]
[394839775,1764004338131,-671.7,0.00041643,8]
[394839776,1764004338140,-502.35,0.00041643,8]
[394839777,1764004338149,-1000.0,0.00041644,2]
[394839778,1764004338159,-760.0,0.00041644,120]
[394839779,1764004338168,-500.0,0.00041748,30]
[394839780,1764004338177,-500.0,0.00041748,30]
[394839781,1764004338187,-2000.0,0.00041767,3]
[394839782,1764004338196,-1000.0,0.00041781,2]
[394839783,1764004338206,-760.0,0.00041781,120]
[394839784,1764004338215,-818.41,0.000418,30]
[394839785,1764004338224,-750.4249106,0.000418,39]
[394839786,1764004338233,-453.45881007,0.000419,120]
[394839787,1764004338246,-284.85210451,0.000419,120]
[394839788,1764004338255,-193.19426834,0.000419,120]
[394839789,1764004338264,-180.15109994,0.000419,120]
[394839790,1764004338274,-262.04738747,0.000419,120]
[394839791,1764004338284,-750.0,0.00041914,20]
[394839792,1764004338294,-506.0914097,0.00041917,8]
[394839793,1764004338305,-572.92077613,0.00041917,8]
[394839794,1764004338315,-562.23,0.00041917,8]
[394839795,1764004338325,-651.3076597,0.00041917,8]
[394839796,1764004338335,-576.24880392,0.00041917,8]
[394839797,1764004338345,-516.01428838,0.00041917,8]
[394839798,1764004338354,-381.88859659,0.00041917,8]
[394839799,1764004338364,-572.46859866,0.00041917,8]
[394839800,1764004338374,-508.11325999,0.00041917,8]
[394839801,1764004338384,-613.89209562,0.00041917,8]
[394839802,1764004338394,-611.42060152,0.00041917,8]
[394839803,1764004338404,-745.12,0.00041917,8]
[394839804,1764004338414,-855.21044661,0.00041917,8]
[394839805,1764004338423,-532.62929354,0.00041917,8]
[394839806,1764004338434,-548.27,0.00041917,8]
[394839807,1764004338444,-1041.92714681,0.00041917,8]
[394839808,1764004338454,-1368.332,0.00041917,8]
[394839809,1764004338463,-781.08778737,0.00041917,8]
[394839810,1764004338473,-58883.0704497,0.00041917,5]
[394839811,1764004338482,-2084.43546948,0.00041917,8]
[394839812,1764004338492,-1628.19698517,0.00041917,8]
[394839813,1764004338502,-5963.61441664,0.00041917,8]
[394839814,1764004338512,-1883.51830814,0.00041917,8]
[394839815,1764004338522,-690.59570748,0.00041917,8]
[394839816,1764004338531,-2060.11305909,0.00041917,8]
[394839817,1764004338546,-4395.2893699,0.00041917,8]
[394839818,1764004338555,-525.17393401,0.00041917,8]
[394839819,1764004338565,-1003.22562262,0.00041917,8]
[394839820,1764004338575,-589.2402188,0.00041917,8]
[394839821,1764004338586,-1145.703229,0.00041917,8]
[394839822,1764004338596,-793.50408696,0.00041917,8]
[394839823,1764004338605,-7870.63555068,0.00041917,8]
[394839824,1764004338614,-500.0,0.00041917,8]
[394839825,1764004338624,-573.64,0.00041917,8]
[394839826,1764004338633,-4868.19477152,0.00041917,2]
[394839827,1764004338645,-777.07,0.00041917,8]
[394839828,1764004338654,-511.53645484,0.00041917,8]
[394839829,1764004338664,-671.87843061,0.00041917,8]
[394839830,1764004338674,-502.57,0.00041917,8]
[394839831,1764004338683,-1000.0,0.00041918,2]
[394839832,1764004338693,-760.0,0.00041918,120]
[394839833,1764004338704,-239.84119403,0.00041919,30]
[394839834,1764004338714,-231.28369723,0.00041944,30]
[394839835,1764004338723,-223.0315306,0.00041975,30]
[394839836,1764004338733,-265265.7114,0.00041983,30]
[394839837,1764004338743,-1923.28,0.00041999,2]
[394839838,1764004338753,-958.75786409,0.00041999,120]
[394839839,1764004338764,-245.25,0.00042,30]
[394839840,1764004338774,-300.0,0.00042,120]
[394839841,1764004338784,-1000.0,0.00042,120]
[394839842,1764004338794,-1000.0,0.00042,120]
[394839843,1764004338804,-1000.0,0.00042,120]
[394839844,1764004338814,-1000.0,0.00042,120]
[394839845,1764004338823,-1000.0,0.00042,120]
[394839846,1764004338833,-1000.0,0.00042,120]
[394839847,1764004338842,-1000.0,0.00042,120]
[394839848,1764004338852,-1000.0,0.00042,120]
[394839849,1764004338862,-1000.0,0.00042,120]
[394839850,1764004338872,-1000.0,0.00042,120]
[394839851,1764004338882,-336.34286237,0.00042,30]
[394839852,1764004338891,-244.58418413,0.00042,120]
[394839853,1764004338901,-592.97008801,0.00042,120]
[394839854,1764004338910,-580.446175,0.00042,120]
[394839855,1764004338919,-804.77959715,0.00042,30]
[394839856,1764004338928,-1000.0,0.00042,120]
[394839857,1764004338938,-1002.76305618,0.00042,60]
[394839858,1764004338947,-1351.83970808,0.0004201,2]
[394839859,1764004338959,-500.0,0.00042022,30]
[394839860,1764004338968,-500.0,0.00042022,30]
[394839861,1764004338977,-1181.44336025,0.0004205,2]
[394839862,1764004338987,-1000.0,0.00042055,2]
[394839863,1764004338996,-760.0,0.00042055,120]
[394839864,1764004339005,-582.0,0.000421,3]
[394839865,1764004339015,-171.13616196,0.00042121,120]
[394839866,1764004339024,-500.0,0.00042191,2]
[394839867,1764004339034,-1000.0,0.00042192,2]
[394839868,1764004339044,-760.0,0.00042192,120]
[394839869,1764004339053,-24030680.21016856,0.00042193,7]
[394839870,1764004339063,-2381.72265272,0.00042193,7]
[394839871,1764004339073,-22988075.72526113,0.00042193,7]
[394839872,1764004339677,-422.25441045,0.0003863,8]
[394839873,1764004339692,-2747.06,0.0003863,8]
[394839874,1764004339705,-2576.96558955,0.0003863,8]
[394839875,1764004339714,-396.88300345,0.00038904,8]
[394839876,1764004339832,-5349.39699655,0.00038904,8]
[394839877,1764004339843,-5746.28,0.00039178,8]
[394839878,1764004339852,-5746.28,0.00039452,8]
[394839879,1764004339862,-5746.28,0.00039726,8]
[394839880,1764004339938,-31684.67752004,0.00042193,7]
[394839881,1764004339952,-842599.93779135,0.00042193,7]
[394839882,1764004339962,-1329.01184212,0.00042193,7]
[394839883,1764004339978,-622.2216,0.00042193,7]
[394839891,1764005229692,180.58,8.108e-05,2]
[394839892,1764005231274,180.58,0.00012162,2]
[394839910,1764005432235,-729.52973062,0.00015764,2]
[394839913,1764005432289,-258.99826938,0.00015764,2]
[394839914,1764005432300,-250.0,0.00015764,2]
[394839915,1764005432310,-300.0,0.00015764,2]
[394839916,1764005432319,-167.64344993,0.00015764,2]
[394839917,1764005432328,-300.0,0.0001587,2]
[394839918,1764005432338,-211.98920063,0.0001587,2]
[394839919,1764005432347,-500.0,0.00015973,2]
[394839920,1764005432361,-500.0,0.00015973,2]
[394839921,1764005432371,-500.0,0.00015973,2]
[394839922,1764005432380,-155.34255425,0.00015973,2]
[394839923,1764005432390,-500.0,0.00015973,2]
[394839924,1764005432400,-300.0,0.00015985,2]
[394839925,1764005432410,-1200.0,0.00015985,2]
[394839926,1764005432420,-300.0,0.00015985,2]
[394839927,1764005432429,-300.0,0.00015985,2]
[394839928,1764005432439,-235.0806,0.00015986,2]
[394839929,1764005432448,-2500.0,0.00015986,2]
[394839930,1764005432457,-13041.43281079,0.00015986,2]
[394839931,1764005432469,-2850.15,0.00015986,2]
[394839932,1764005432496,-1302.0,0.00015986,2]
[394839933,1764005432508,-380.79749567,0.00015986,2]
[394839934,1764005432519,-295.0,0.00015986,2]
[394839935,1764005432533,-704.13926237,0.00015986,2]
[394839936,1764005432544,-21770.68783283,0.00015986,2]
[394839937,1764005432556,-14251.8,0.00015986,2]
[394839939,1764005432566,-4308.48920621,0.00015986,2]
[394839963,1764005438231,-4422.5248374,0.00015986,2]
[394839964,1764005438243,-696672.97855473,0.00015986,2]
[394839965,1764005438253,-1200.0,0.0001607,2]
[394839966,1764005438264,-501.20243552,0.00016073,2]
[394839967,1764005438275,-500.0,0.00016073,2]
[394839968,1764005438288,-500.0,0.00016085,2]
[394839969,1764005438298,-500.0,0.00016085,2]
[394839970,1764005438308,-500.0,0.00016085,2]
[394839971,1764005438318,-500.0,0.00016085,2]
[394839972,1764005438328,-500.0,0.00016085,2]
[394839973,1764005438339,-500.0,0.00016085,2]
[394839974,1764005438352,-1883.99102492,0.000161,2]
[394839975,1764005438363,-3796.49372355,0.000161,2]
[394839976,1764005438373,-1883.99102488,0.00016196,2]
[394839977,1764005438383,-3796.49372353,0.00016196,2]
[394839978,1764005438392,-6292.8548,0.000162,5]
[394839979,1764005438402,-180.58,0.00016216,2]
[394839980,1764005438412,-1883.99102488,0.00016293,2]
[394839981,1764005438421,-3796.49372353,0.00016293,2]
[394839982,1764005438431,-1883.99102488,0.00016389,2]
[394839983,1764005438441,-3796.49372353,0.00016389,2]
[394839984,1764005438451,-1883.99102488,0.00016486,2]
[394839985,1764005438462,-3796.49372353,0.00016486,2]
[394839987,1764005438471,-1000.0,0.00016521,2]
[394839989,1764005438481,-1000.0,0.00016521,2]
[394839990,1764005438492,-500.0,0.00016521,2]
[394839991,1764005438502,-1883.99102488,0.00016582,2]
[394839992,1764005438512,-3796.49372353,0.00016582,2]
[394839994,1764005438523,-1000.0,0.00016621,2]
[394839995,1764005438533,-1883.99102488,0.00016679,2]
[394839996,1764005438543,-3796.49372353,0.00016679,2]
[394839997,1764005438557,-1883.99102488,0.00016775,2]
[394839998,1764005438567,-3796.49372353,0.00016775,2]
[394839999,1764005438577,-11121.43626219,0.00016809,2]
[394840000,1764005438587,-1883.99102488,0.00016872,2]
[394840001,1764005438596,-3796.49372353,0.00016872,2]
[394840002,1764005438607,-1883.99102488,0.00016968,2]
[394840003,1764005438617,-3796.49372353,0.00016968,2]
[394840004,1764005438627,-247.52382642,0.00016968,2]
[394840005,1764005438637,-502.10718948,0.00016973,2]
[394840006,1764005438647,-500.0,0.00016973,2]
[394840007,1764005438657,-500.0,0.00016973,2]
[394840008,1764005438667,-500.0,0.00016973,2]
[394840009,1764005438678,-500.0,0.00016973,2]
[394840010,1764005438687,-500.0,0.00016973,2]
[394840011,1764005438697,-500.0,0.00016973,2]
[394840012,1764005438707,-167.89982544,0.00016973,2]
[394840013,1764005438718,-161.2,0.00016979,2]
[394840014,1764005438727,-453.84989098,0.0001699,2]
[394840015,1764005438737,-453.84989098,0.0001699,2]
[394840016,1764005438748,-453.84989098,0.0001699,2]
[394840017,1764005438758,-500.0,0.00016999,2]
[394840018,1764005438769,-482.04481902,0.00016999,2]
[394840019,1764005438779,-258.02573936,0.00016999,2]
[394840020,1764005438789,-500.0,0.00016999,2]
[394840021,1764005438799,-204.46457253,0.00016999,2]
[394840022,1764005438809,-500.0,0.00016999,2]
[394840023,1764005438819,-250.0,0.00017,2]
[394840024,1764005438829,-2817795.78417084,0.00017,2]
[394840025,1764005438844,-1439.312,0.00017,2]
[394840026,1764005438856,-7366.43719206,0.00017,2]
[394840027,1764005438870,-442.92360015,0.00017,2]
[394840028,1764005438890,-29493.14385949,0.00017,2]
[394840039,1764005440318,-204.67,0.00015992,2]
[394840040,1764005440328,-17421.81992,0.00017,2]
[394840041,1764005440339,-1678.4,0.00017,2]
[394840045,1764005440373,-1449.495,0.00017,2]
[394840048,1764005440384,-8856.3,0.00017,2]
[394840050,1764005440396,-393.75864082,0.00017,2]
[394840052,1764005440407,-70209.22121103,0.00017,2]
[394840054,1764005440419,-44869.48478903,0.00017,2]
[394840056,1764005440431,-1321.3199994,0.00017,2]
[394840059,1764005440443,-3043578.08898252,0.00017,2]
[394840061,1764005440452,-1500.0,0.00017068,2]
[394840063,1764005440462,-1500.0,0.00017068,2]
[394840065,1764005440471,-510.0,0.00017104,2]
[394840067,1764005440480,-1500.0,0.00017168,2]
[394840069,1764005440490,-250.0,0.0001734,2]
[394840071,1764005440500,-195.0,0.0001734,2]
[394840072,1764005440510,-300.0,0.0001734,2]
[394840073,1764005440519,-250.0,0.0001734,2]
[394840074,1764005440528,-168.0,0.00017342,2]
[394840075,1764005440538,-420.0,0.00017477,2]
[394840076,1764005440548,-420.0,0.00017477,2]
[394840077,1764005440564,-168.0,0.00017515,2]
[394840078,1764005440573,-1680.0,0.00017565,2]
[394840079,1764005440582,-651.43988226,0.00017616,2]
[394840080,1764005440591,-873.50394795,0.00017616,2]
[394840081,1764005440600,-168.0,0.00017634,2]
[394840082,1764005440611,-161.2,0.0001768,2]
[394840083,1764005440620,-403.0,0.000177,5]
[394840084,1764005440630,-500.0,0.00017716,2]
[394840085,1764005440640,-565945.00714201,0.00018,2]
[394840086,1764005440650,-168.0,0.00018013,2]
[394840087,1764005440659,-7994.26965009,0.00018077,2]
[394840088,1764005440668,-168.0,0.00018239,2]
[394840089,1764005440678,-168.0,0.00018268,2]
[394840090,1764005440687,-161.2,0.0001838,2]
[394840091,1764005440696,-300.0,0.00019,2]
[394840092,1764005440705,-205.79493683,0.00019,2]
[394840093,1764005440714,-161.2,0.00019081,2]